bitfinex/quotes_BTCUSD_20251010
["timestamp","ask_amount","ask_price","bid_price","bid_amount"]
[1760110627858,1.71804998,119240.0,119230.0,0.00141011]
[1760110628059,1.71804998,119240.0,119230.0,0.16915312]
[1760110628060,0.60652,119240.0,119230.0,0.16915312]
[1760110628276,0.26644,119240.0,119230.0,0.16915312]
[1760110628708,0.0484,119270.0,119250.0,0.16771488]
[1760110628923,0.16772029,119250.0,119230.0,0.00241011]
[1760110629138,0.34,119250.0,119240.0,0.16772895]
[1760110629398,0.60636,119250.0,119230.0,0.37774055]
[1760110629650,0.60636,119250.0,119240.0,0.16772895]
[1760110629906,0.60632,119250.0,119230.0,0.11135217]
[1760110630155,1.15749668,119240.0,119230.0,0.00141011]
[1760110630625,0.54483078,119250.0,119240.0,0.39883463]
[1760110632511,0.98780668,119250.0,119240.0,0.39883463]
[1760110632742,1.13205668,119250.0,119240.0,0.39883463]
[1760110633215,1.29977156,119250.0,119240.0,0.39883463]
[1760110633452,1.93373816,119250.0,119240.0,0.39883463]
[1760110633690,0.6339666,119250.0,119240.0,0.39883463]
[1760110633973,1.76586328,119250.0,119240.0,0.39883463]
[1760110634181,0.04892849,119260.0,119240.0,0.56656358]
[1760110634396,0.26596,119250.0,119240.0,0.67650564]
[1760110634626,0.00052849,119260.0,119250.0,0.16771488]
[1760110634849,0.26664849,119260.0,119250.0,0.36791694]
[1760110635090,0.26664849,119260.0,119250.0,0.27765694]
[1760110635347,0.00052849,119260.0,119250.0,0.27765694]
[1760110635600,0.26644849,119260.0,119250.0,0.36791694]
[1760110635870,0.129,119310.0,119290.0,0.16765818]
[1760110636134,0.00767073,119310.0,119300.0,0.16764459]
[1760110636368,0.99523741,119310.0,119290.0,0.19447818]
[1760110636609,0.99523741,119310.0,119290.0,0.16765818]
[1760110636868,0.81749668,119300.0,119270.0,0.20537004]
[1760110637091,0.72916621,119300.0,119290.0,0.16765864]
[1760110637331,0.00751953,119300.0,119290.0,0.2507807]
[1760110637569,0.98732668,119300.0,119280.0,0.16767119]
[1760110637817,1.16249213,119300.0,119270.0,0.02932]
[1760110638072,0.34751953,119300.0,119270.0,0.20539078]
[1760110638308,0.34751953,119300.0,119290.0,0.16765864]
[1760110638545,1.06916621,119300.0,119280.0,0.25079365]
[1760110638793,0.00751953,119300.0,119290.0,1.08950738]
[1760110639052,0.00855645,119350.0,119340.0,0.1675884]
[1760110639376,0.00855645,119350.0,119340.0,0.37472046]
[1760110639377,0.00070418,119350.0,119340.0,0.37472046]
[1760110640307,0.00070418,119350.0,119340.0,0.71472046]
[1760110640556,0.00070418,119350.0,119340.0,0.37472046]
[1760110640826,0.00070418,119350.0,119340.0,0.28446046]
[1760110641111,0.00070418,119350.0,119340.0,0.37472046]
[1760110641537,0.00070418,119350.0,119340.0,0.28446046]
[1760110641758,0.00070418,119350.0,119340.0,0.37472046]
[1760110641976,0.00070418,119350.0,119340.0,0.28446046]
[1760110642191,0.00070418,119350.0,119320.0,0.29998417]
[1760110642414,0.43371901,119350.0,119320.0,0.11687206]
[1760110642712,0.2634392,119340.0,119320.0,0.08312206]
[1760110643008,0.2654,119330.0,119310.0,0.04213152]
[1760110643203,0.58237849,119340.0,119300.0,0.17602681]
[1760110643419,0.55047138,119330.0,119300.0,0.25076591]
[1760110643650,0.0484,119310.0,119280.0,0.20980522]
[1760110643874,0.48127362,119310.0,119280.0,0.29292728]
[1760110644092,0.34,119300.0,119280.0,0.16767224]
[1760110644360,0.34,119300.0,119290.0,0.20285877]
[1760110644361,0.2652,119300.0,119290.0,0.20285877]
[1760110644792,0.2652,119300.0,119290.0,0.20300997]
[1760110645013,0.26524,119300.0,119290.0,0.16780984]
[1760110645232,1.4277419,119320.0,119310.0,1.0]
[1760110645451,1.74698054,119320.0,119310.0,1.0]
[1760110645895,2.14283054,119320.0,119310.0,1.0]
[1760110646110,2.15679881,119320.0,119310.0,1.0]
[1760110646331,2.43782584,119320.0,119310.0,0.99620251]
[1760110646546,2.43786584,119320.0,119310.0,0.99620251]
[1760110646762,2.14283054,119320.0,119310.0,0.99620251]
[1760110647243,0.93254939,119320.0,119310.0,0.99620251]
[1760110647459,0.91695852,119320.0,119310.0,0.99620251]
[1760110647743,0.35800722,119320.0,119310.0,1.16383305]
[1760110648017,0.35800722,119320.0,119310.0,1.29622457]
[1760110648018,0.2652,119320.0,119310.0,1.29622457]
[1760110648255,0.34071169,119350.0,119330.0,0.16760214]
[1760110648504,0.01582345,119350.0,119340.0,0.2013384]
[1760110648740,0.01582345,119350.0,119340.0,0.2915984]
[1760110648741,0.0002,119350.0,119340.0,0.2915984]
[1760110649015,0.0002,119350.0,119340.0,0.37472046]
[1760110649430,0.00070418,119350.0,119340.0,0.37472046]
[1760110650295,0.00070418,119350.0,119340.0,0.63980046]
[1760110650930,0.00070418,119350.0,119340.0,0.37472046]
[1760110651153,0.00070418,119350.0,119340.0,0.2013384]
[1760110651365,0.00070418,119350.0,119340.0,0.03375]
[1760110651594,0.33915551,119340.0,119310.0,1.20596457]
[1760110651807,0.33915551,119340.0,119310.0,1.37799457]
[1760110652025,0.33915551,119340.0,119310.0,1.64426448]
[1760110652260,0.60399551,119340.0,119330.0,0.20135244]
[1760110652479,0.33915551,119340.0,119330.0,0.03375]
[1760110652689,0.26546418,119350.0,119340.0,0.1675884]
[1760110652902,0.26542418,119350.0,119340.0,0.1675884]
[1760110653144,0.00545688,119350.0,119340.0,0.25071046]
[1760110653360,0.00545688,119350.0,119330.0,0.20134931]
[1760110653571,0.34545688,119350.0,119340.0,0.1675884]
[1760110653787,0.34545688,119350.0,119340.0,0.2658084]
[1760110653788,0.34070418,119350.0,119340.0,0.2658084]
[1760110654011,0.34070418,119350.0,119340.0,0.1675884]
[1760110654234,0.16759788,119340.0,119310.0,1.20595099]
[1760110654606,0.89325725,119340.0,119310.0,1.24695196]
[1760110654607,0.34070418,119350.0,119340.0,0.1675884]
[1760110654767,0.00070418,119350.0,119340.0,0.2658084]
[1760110655338,0.00170418,119350.0,119340.0,0.2658084]
[1760110655542,0.00170418,119350.0,119340.0,0.25071046]
[1760110655755,0.00070418,119350.0,119340.0,0.25071046]
[1760110655972,0.00070418,119350.0,119330.0,0.03375]
[1760110655973,0.34070418,119350.0,119330.0,0.03375]
[1760110656194,1.13859143,119350.0,119330.0,0.00191563]
[1760110656419,0.34070418,119350.0,119340.0,0.1675884]
[1760110656634,0.34070418,119350.0,119330.0,0.29956838]
[1760110656850,0.60570418,119350.0,119330.0,0.20134838]
[1760110657056,0.34070418,119350.0,119330.0,0.20134936]
[1760110657271,0.77316081,119350.0,119330.0,0.03375]
[1760110657479,1.66641806,119350.0,119320.0,0.16761587]
[1760110657686,1.66641806,119350.0,119320.0,0.25073793]
[1760110657898,1.66751806,119350.0,119320.0,0.16761467]
[1760110658112,1.6834122,119350.0,119310.0,1.20596441]
[1760110658348,0.26295884,119340.0,119310.0,1.11307457]
[1760110658562,0.09537,119340.0,119320.0,0.1676163]
[1760110658776,0.00080418,119350.0,119330.0,0.20135218]
[1760110658990,0.00422498,119340.0,119330.0,0.38269424]
[1760110659194,0.00422498,119340.0,119330.0,0.11687206]
[1760110659409,0.00422498,119340.0,119330.0,0.2844745]
[1760110659680,0.00422498,119340.0,119310.0,1.3041833]
[1760110659905,0.341,119340.0,119330.0,0.16760244]
[1760110660121,0.60568,119340.0,119330.0,0.03375]
[1760110660315,0.60468,119340.0,119310.0,1.20595601]
[1760110660522,0.77326939,119340.0,119310.0,1.28907807]
[1760110660736,0.341,119340.0,119320.0,0.16760835]
[1760110660935,0.26568,119340.0,119320.0,0.50761529]
[1760110661182,0.001,119340.0,119330.0,0.16760244]
[1760110661610,0.26564,119340.0,119320.0,0.60583529]
[1760110661819,0.26564,119340.0,119320.0,0.59073835]
[1760110662029,0.26464,119340.0,119320.0,0.59073848]
[1760110662297,0.26464,119340.0,119330.0,0.16760244]
[1760110662512,0.26564,119340.0,119320.0,0.59073848]
[1760110662730,0.26464,119340.0,119320.0,0.59073848]
[1760110662940,0.26464,119340.0,119330.0,0.16760244]
[1760110663153,0.26564,119340.0,119330.0,0.16760244]
[1760110663374,0.00080418,119350.0,119340.0,0.1675884]
[1760110663623,1.19966704,119350.0,119330.0,0.20135244]
[1760110663837,0.09637,119340.0,119310.0,1.16383074]
[1760110664049,0.0218515,119340.0,119310.0,1.65194432]
[1760110664271,0.001,119340.0,119330.0,0.16760244]
[1760110664472,0.001,119340.0,119330.0,0.19567244]
[1760110664685,0.001,119340.0,119330.0,0.2787945]
[1760110664903,0.001,119340.0,119330.0,0.3770145]
[1760110665123,0.00080418,119350.0,119340.0,0.1675884]
[1760110665349,0.00080418,119350.0,119340.0,0.38268046]
[1760110665565,1.34620974,119350.0,119330.0,1.16760162]
[1760110665771,0.93422286,119340.0,119330.0,1.16760158]
[1760110665982,0.01175977,119340.0,119330.0,1.0]
[1760110666238,0.05064498,119340.0,119330.0,1.0]
[1760110666451,1.21062263,119340.0,119330.0,1.16760244]
[1760110666665,0.94598263,119340.0,119330.0,1.16760244]
[1760110666886,0.94599063,119340.0,119330.0,1.16760244]
[1760110667308,0.01176777,119340.0,119330.0,1.20135244]
[1760110667511,0.93844784,119340.0,119330.0,1.20135244]
[1760110667713,0.94599063,119340.0,119330.0,1.0]
[1760110667915,0.94599063,119340.0,119330.0,1.16760244]
[1760110668126,0.01176777,119340.0,119330.0,1.16760244]
[1760110668334,1.29073624,119340.0,119330.0,1.0]
[1760110668542,1.13169063,119340.0,119330.0,1.0]
[1760110668946,1.6549456,119340.0,119330.0,1.0]
[1760110669200,1.96674485,119340.0,119330.0,1.0]
[1760110669415,0.75645194,119340.0,119330.0,1.16760244]
[1760110669626,0.34522498,119340.0,119330.0,1.20135244]
[1760110669907,0.27741103,119340.0,119330.0,1.20135244]
[1760110670323,0.26986498,119340.0,119330.0,1.26571244]
[1760110670742,0.00522498,119340.0,119330.0,1.26571244]
[1760110671164,0.26982498,119340.0,119330.0,1.26571244]
[1760110671598,0.26982498,119340.0,119330.0,1.09811]
[1760110671893,0.26982498,119340.0,119330.0,1.20135244]
[1760110672106,0.26982498,119340.0,119330.0,1.26571244]
[1760110672315,0.00522498,119340.0,119330.0,1.4411845]
[1760110672531,0.00522498,119340.0,119330.0,1.11687206]
[1760110672744,0.00522498,119340.0,119330.0,1.3488345]
[1760110672954,0.93944784,119340.0,119330.0,1.3488345]
[1760110673169,0.93944784,119340.0,119330.0,1.3138345]
[1760110673382,0.00522498,119340.0,119330.0,1.6707845]
[1760110674007,0.93944784,119340.0,119330.0,1.4061845]
[1760110674212,0.00522498,119340.0,119330.0,1.6707845]
[1760110675089,0.93844784,119340.0,119330.0,1.5794345]
[1760110675301,0.00422498,119340.0,119330.0,1.5794345]
[1760110675524,0.00522498,119340.0,119330.0,1.6707845]
[1760110675732,0.00422498,119340.0,119330.0,1.6707845]
[1760110675944,0.00422498,119340.0,119330.0,1.6717845]
[1760110676161,0.00422498,119340.0,119330.0,1.23958206]
[1760110676378,1.89092624,119340.0,119330.0,0.965]
[1760110676592,0.84152905,119340.0,119330.0,0.965]
[1760110676814,0.84152905,119340.0,119330.0,1.31738244]
[1760110676815,0.02845485,119340.0,119330.0,1.31738244]
[1760110677022,0.01277808,119340.0,119330.0,1.4005045]
[1760110677237,0.00522498,119340.0,119330.0,1.6650645]
[1760110677505,0.00522498,119340.0,119330.0,1.4005045]
[1760110677925,0.00522498,119340.0,119330.0,1.4015045]
[1760110678131,0.00522498,119340.0,119330.0,1.3091545]
[1760110678337,0.00522498,119340.0,119330.0,1.3081545]
[1760110678818,0.00422498,119340.0,119330.0,1.4005045]
[1760110679051,0.93944784,119340.0,119330.0,1.23290206]
[1760110679271,0.9470079,119340.0,119330.0,1.3081545]
[1760110679474,0.9470079,119340.0,119330.0,1.3031545]
[1760110679903,0.01278504,119340.0,119330.0,1.3955045]
[1760110680136,0.00522498,119340.0,119330.0,1.3955045]
[1760110680349,1.22285866,119350.0,119330.0,1.13555206]
[1760110680350,1.00832328,119350.0,119330.0,1.13555206]
[1760110680566,0.07410042,119350.0,119330.0,1.3031545]
[1760110680773,0.001,119340.0,119330.0,1.3031545]
[1760110680986,0.001,119340.0,119330.0,1.3955045]
[1760110681461,0.00776006,119360.0,119350.0,0.16757436]
[1760110681668,0.00776006,119360.0,119350.0,0.54612642]
[1760110681669,0.94213411,119360.0,119350.0,0.54612642]
[1760110681884,0.94213411,119360.0,119350.0,0.70283642]
[1760110682097,0.00791125,119360.0,119350.0,0.70283642]
[1760110682770,0.00791125,119360.0,119350.0,0.72937651]
[1760110682996,0.00791125,119360.0,119350.0,0.69589809]
[1760110683209,0.00791125,119360.0,119350.0,0.72243818]
[1760110683421,0.00791125,119360.0,119350.0,0.69589809]
[1760110683631,0.00791125,119360.0,119350.0,0.72243818]
[1760110683845,0.00791125,119360.0,119350.0,0.49536227]
[1760110684074,0.00791125,119360.0,119350.0,0.75988227]
[1760110684291,1e-08,119370.0,119360.0,0.16756032]
[1760110684503,1e-08,119370.0,119360.0,0.40296247]
[1760110684713,0.0001,119400.0,119390.0,0.16751821]
[1760110684932,0.934474,119400.0,119390.0,0.11403206]
[1760110685227,0.01832292,119400.0,119380.0,0.02949]
[1760110685443,0.93422286,119390.0,119380.0,0.02949]
[1760110685656,0.93422286,119390.0,119370.0,0.20540979]
[1760110685657,1.56109463,119390.0,119360.0,0.20230889]
[1760110685872,0.08892619,119390.0,119370.0,0.19703618]
[1760110686095,1.59987102,119400.0,119390.0,0.16751821]
[1760110686313,0.38932464,119400.0,119390.0,0.03091]
[1760110686535,1.47298035,119400.0,119380.0,0.19702224]
[1760110686748,0.43887464,119400.0,119380.0,0.19702068]
[1760110686968,0.36682023,119400.0,119390.0,0.26163821]
[1760110687181,0.95254578,119400.0,119390.0,0.34476027]
[1760110687614,0.95571186,119400.0,119390.0,0.43675027]
[1760110688042,0.02146881,119400.0,119390.0,0.43675027]
[1760110688275,0.00341722,119400.0,119390.0,0.70119027]
[1760110688711,0.00341722,119400.0,119390.0,0.26923206]
[1760110688978,0.00341722,119400.0,119370.0,0.02949]
[1760110688979,1.55474946,119400.0,119370.0,0.02949]
[1760110689223,0.50755238,119370.0,119350.0,0.01]
[1760110689439,0.60444,119360.0,119350.0,0.01]
[1760110689662,1.84581318,119360.0,119350.0,0.01]
[1760110689879,1.99000711,119360.0,119350.0,0.01]
[1760110690086,2.13947268,119360.0,119350.0,0.01]
[1760110690327,0.81931389,119360.0,119350.0,0.01]
[1760110690613,0.6044,119360.0,119350.0,0.01]
[1760110690830,0.93422286,119360.0,119350.0,0.04091]
[1760110691063,0.38955,119380.0,119350.0,0.04091]
[1760110691294,0.3580543,119380.0,119360.0,0.20130534]
[1760110691560,0.04055871,119390.0,119370.0,0.19703628]
[1760110691778,1.19862286,119390.0,119380.0,0.19678404]
[1760110692011,0.0001,119400.0,119390.0,0.16751821]
[1760110692255,0.00025114,119400.0,119390.0,0.37354027]
[1760110692465,1e-08,119400.0,119390.0,0.40008036]
[1760110692677,1e-08,119400.0,119390.0,0.37354027]
[1760110693160,1e-08,119400.0,119390.0,0.37254027]
[1760110693376,1e-08,119400.0,119390.0,0.39908036]
[1760110693799,1e-08,119400.0,119390.0,0.37254027]
[1760110694226,1e-08,119400.0,119390.0,0.63690027]
[1760110694659,1e-08,119400.0,119390.0,1.37254027]
[1760110694867,1e-08,119400.0,119390.0,1.69838769]
[1760110695086,0.00316609,119400.0,119390.0,1.69838769]
[1760110695513,1e-08,119400.0,119390.0,2.61882929]
[1760110695730,0.0180235,119450.0,119430.0,0.16746211]
[1760110695938,0.00015114,119450.0,119440.0,0.55754809]
[1760110696147,0.89559275,119450.0,119440.0,0.64067015]
[1760110696362,0.0257145,119450.0,119440.0,0.70431725]
[1760110696597,0.00015114,119450.0,119440.0,0.70431725]
[1760110697242,0.00015114,119450.0,119440.0,0.70427725]
[1760110697447,0.00115114,119450.0,119440.0,0.70427725]
[1760110698299,1e-08,119450.0,119440.0,0.70427725]
[1760110698499,0.00773986,119470.0,119460.0,0.16742005]
[1760110698711,0.00773986,119470.0,119460.0,0.54407211]
[1760110698712,0.00070359,119470.0,119460.0,0.54407211]
[1760110698920,0.00070359,119470.0,119460.0,0.63606211]
[1760110699552,0.00070359,119470.0,119460.0,0.63602211]
[1760110700196,0.00070359,119470.0,119460.0,0.97602211]
[1760110700478,0.0243062,119480.0,119470.0,0.50740604]
[1760110700684,1e-08,119480.0,119470.0,1.6331597]
[1760110701120,4.97286017,119500.0,119490.0,0.50737802]
[1760110701336,4.97286017,119500.0,119490.0,1.10366006]
[1760110701337,4.5199919,119500.0,119490.0,1.10366006]
[1760110701540,4.47143931,119500.0,119490.0,1.00366007]
[1760110701750,4.47671036,119500.0,119490.0,0.97866008]
[1760110701951,4.47671036,119500.0,119490.0,0.71446008]
[1760110702394,4.47671036,119500.0,119490.0,0.97862008]
[1760110702801,4.47671036,119500.0,119490.0,0.43663676]
[1760110703238,4.44171036,119500.0,119490.0,0.70857791]
[1760110703435,4.44171036,119500.0,119490.0,0.44641791]
[1760110703650,4.44171036,119500.0,119490.0,0.70957791]
[1760110703869,4.44171036,119500.0,119490.0,0.7345779]
[1760110704071,4.44171036,119500.0,119490.0,0.8104179]
[1760110704318,4.44171036,119500.0,119490.0,1.3964979]
[1760110704535,3.72067241,119500.0,119490.0,2.29193951]
[1760110704740,3.5645166,119500.0,119490.0,2.41847959]
[1760110704941,3.51422112,119500.0,119490.0,1.83239959]
[1760110705150,3.48907823,119500.0,119490.0,1.3964579]
[1760110705567,3.48907823,119500.0,119490.0,2.3928995]
[1760110705776,3.46403534,119500.0,119490.0,0.91141789]
[1760110705976,3.46403534,119500.0,119490.0,1.0754979]
[1760110706387,3.46403534,119500.0,119490.0,1.49741789]
[1760110706600,3.46403534,119500.0,119490.0,2.53949453]
[1760110706601,2.79443513,119500.0,119490.0,2.53949453]
[1760110706809,2.2660489,119500.0,119490.0,2.56603462]
[1760110707021,1.98652249,119500.0,119490.0,1.690113]
[1760110707221,1.82944212,119500.0,119490.0,2.98795461]
[1760110707425,1.82944212,119500.0,119490.0,2.98595461]
[1760110707426,1.74308028,119500.0,119490.0,2.98595461]
[1760110707629,1.10711935,119500.0,119490.0,2.91975958]
[1760110707844,0.99680337,119500.0,119490.0,1.93239958]
[1760110708216,0.83772305,119500.0,119490.0,2.89417949]
[1760110708450,0.67579453,119500.0,119490.0,0.91041789]
[1760110708670,0.26157858,119500.0,119490.0,1.99861788]
[1760110708892,0.09481876,119500.0,119490.0,2.51827958]
[1760110709110,0.02694638,119500.0,119490.0,2.92159958]
[1760110709324,1.0,119560.0,119490.0,2.92159958]
[1760110709325,0.06619503,119550.0,119540.0,0.50730801]
[1760110709534,0.06634602,119550.0,119540.0,0.86217122]
[1760110709981,0.00015099,119550.0,119540.0,0.86217122]
[1760110710200,0.00015099,119550.0,119540.0,0.09090321]
[1760110710449,0.8955926,119550.0,119540.0,0.00774442]
[1760110710702,0.8955926,119550.0,119540.0,0.00974523]
[1760110710922,0.00015099,119550.0,119540.0,0.00974523]
[1760110711150,0.00015099,119550.0,119540.0,0.2591753]
[1760110711359,0.00015099,119550.0,119540.0,0.08512206]
[1760110711575,0.8955926,119550.0,119540.0,0.25143007]
[1760110711794,1.0351826,119550.0,119540.0,0.001]
[1760110712403,0.8955926,119550.0,119540.0,0.08412206]
[1760110712643,0.13974099,119550.0,119530.0,0.06212449]
[1760110712850,1.03503161,119540.0,119530.0,0.06212449]
[1760110713063,0.34,119530.0,119500.0,0.23355552]
[1760110713280,0.89544161,119510.0,119500.0,0.5805594]
[1760110713499,1.15932161,119520.0,119500.0,0.5889293]
[1760110713737,1.15932161,119520.0,119500.0,0.51436392]
[1760110713955,0.94302161,119510.0,119500.0,0.26388]
[1760110714170,0.89544161,119510.0,119500.0,0.34700206]
[1760110714389,1.04020161,119510.0,119470.0,0.17576718]
[1760110714603,0.89544161,119490.0,119480.0,0.08312206]
[1760110714826,0.89544161,119490.0,119470.0,0.26403101]
[1760110714827,1.04020161,119490.0,119470.0,0.00015101]
[1760110715092,0.26388,119480.0,119470.0,0.00015101]
[1760110715358,1.54690161,119480.0,119470.0,0.00015101]
[1760110715643,2.1879993,119480.0,119470.0,0.00015101]
[1760110715832,2.1879993,119480.0,119440.0,0.06619503]
[1760110715833,0.34,119460.0,119440.0,0.26388]
[1760110716101,1.23544161,119460.0,119440.0,0.00050359]
[1760110716559,0.89544161,119450.0,119440.0,0.00050359]
[1760110716773,1.25650161,119450.0,119440.0,0.00050359]
[1760110717214,0.60388,119450.0,119440.0,0.00150359]
[1760110717448,1.49932161,119450.0,119440.0,0.00150359]
[1760110717673,2.05741228,119450.0,119440.0,0.00150359]
[1760110717906,1.5823719,119450.0,119440.0,0.00250359]
[1760110718137,0.16744809,119440.0,119430.0,1.0]
[1760110718367,1.24319176,119440.0,119430.0,1.00015114]
[1760110718592,2.13863337,119440.0,119430.0,0.87408751]
[1760110718804,2.62327336,119440.0,119430.0,0.87408751]
[1760110719036,1.54319176,119440.0,119430.0,0.87408751]
[1760110719263,0.61163015,119440.0,119430.0,0.87408751]
[1760110719513,1.24319176,119440.0,119430.0,0.87408751]
[1760110719759,1.27663014,119440.0,119430.0,0.80530888]
[1760110719977,3.51142136,119440.0,119430.0,0.72247221]
[1760110720163,2.19819175,119440.0,119430.0,0.72247221]
[1760110720401,2.19819175,119440.0,119430.0,0.72347221]
[1760110720402,2.17319176,119440.0,119430.0,0.72347221]
[1760110720617,0.73718,119440.0,119430.0,0.72247221]
[1760110720853,0.0001,119450.0,119430.0,0.84385688]
[1760110721068,0.0001,119450.0,119430.0,1.33267937]
[1760110721069,0.89554161,119450.0,119430.0,1.33267937]
[1760110721300,0.89544161,119440.0,119430.0,1.03454205]
[1760110721516,0.0001,119450.0,119440.0,0.16744809]
[1760110721742,0.0001,119450.0,119440.0,0.60608015]
[1760110721948,0.0001,119450.0,119440.0,0.34704206]
[1760110722155,0.0001,119450.0,119440.0,0.51449015]
[1760110723508,0.0001,119450.0,119440.0,0.51549015]
[1760110723728,0.0001,119450.0,119440.0,0.43963206]
[1760110723937,0.89554161,119450.0,119440.0,0.002]
[1760110724157,0.0001,119450.0,119440.0,0.002]
[1760110724599,0.0001,119450.0,119440.0,0.34416015]
[1760110724815,0.89554161,119450.0,119440.0,0.08512206]
[1760110725028,1.38030161,119450.0,119440.0,0.002]
[1760110725248,1.49950161,119450.0,119440.0,0.002]
[1760110725684,2.24400093,119450.0,119440.0,0.002]
[1760110725911,0.7783413,119450.0,119440.0,0.002]
[1760110726339,1.20973537,119450.0,119440.0,0.002]
[1760110726559,0.3401,119450.0,119440.0,0.002]
[1760110726770,0.60406,119450.0,119440.0,0.03622]
[1760110726983,1.00397343,119450.0,119440.0,0.03622]
[1760110727255,0.3401,119450.0,119440.0,0.03622]
[1760110727512,0.3401,119450.0,119440.0,0.03973512]
[1760110727716,0.0001,119450.0,119440.0,0.38189527]
[1760110727941,0.0001,119450.0,119440.0,0.12285718]
[1760110728155,0.0001,119450.0,119440.0,0.38089527]
[1760110728587,0.00751479,119490.0,119470.0,0.16740604]
[1760110728804,0.68614027,119510.0,119480.0,0.47296206]
[1760110729013,0.66387343,119490.0,119480.0,0.08312206]
[1760110729238,0.67138822,119490.0,119480.0,0.08312206]
[1760110729454,0.04319479,119500.0,119480.0,0.25051088]
[1760110729678,0.05483845,119510.0,119490.0,0.03665]
[1760110729679,0.93699188,119510.0,119490.0,0.03665]
[1760110729893,0.00050327,119500.0,119490.0,0.29573802]
[1760110730105,0.00050327,119500.0,119490.0,0.37886008]
[1760110730761,0.00050327,119500.0,119490.0,0.11977206]
[1760110731038,0.00050327,119500.0,119490.0,0.28715008]
[1760110731255,0.00050327,119500.0,119490.0,0.37886008]
[1760110731471,0.00050327,119500.0,119490.0,0.28715008]
[1760110731683,0.00050327,119500.0,119490.0,0.11977206]
[1760110732109,0.00050327,119500.0,119490.0,0.37886008]
[1760110732323,0.00050327,119500.0,119490.0,0.28715008]
[1760110732721,0.6643767,119500.0,119490.0,0.08312206]
[1760110732961,0.6643767,119500.0,119490.0,0.34704206]
[1760110733266,1.17174071,119500.0,119490.0,0.08312206]
[1760110733517,0.34050327,119500.0,119490.0,0.08312206]
[1760110733762,0.00050327,119500.0,119490.0,0.37886008]
[1760110734454,0.6643767,119500.0,119490.0,0.11977206]
[1760110734661,1.0500567,119500.0,119490.0,0.08312206]
[1760110735356,0.38618327,119500.0,119480.0,0.29949605]
[1760110735566,0.34050327,119500.0,119490.0,0.11977206]
[1760110735789,0.34050327,119500.0,119490.0,0.08312206]
[1760110735998,1.0043767,119500.0,119490.0,0.08312206]
[1760110736469,0.34050327,119500.0,119490.0,0.28715008]
[1760110736687,0.34050327,119500.0,119490.0,0.37886008]
[1760110736902,1.0043767,119500.0,119490.0,0.11977206]
[1760110737114,0.34050327,119500.0,119490.0,0.28715008]
[1760110737330,1.1428567,119500.0,119490.0,0.08312206]
[1760110737583,0.34050327,119500.0,119490.0,0.08312206]
[1760110738000,1.0043767,119500.0,119490.0,0.34700206]
[1760110738222,1.0043767,119500.0,119490.0,0.26388]
[1760110738223,0.34050327,119500.0,119490.0,0.26388]
[1760110738438,1.2029167,119500.0,119480.0,0.26528605]
[1760110738702,1.2029167,119500.0,119480.0,0.08452811]
[1760110738703,0.70955343,119490.0,119480.0,0.08452811]
[1760110738916,0.38568,119490.0,119480.0,0.08452811]
[1760110739141,1.04955343,119490.0,119480.0,0.08452811]
[1760110739663,0.34,119490.0,119480.0,0.11869811]
[1760110739926,1.04955343,119490.0,119480.0,0.08452811]
[1760110740139,0.34,119490.0,119480.0,0.18479811]
[1760110740362,1.00387343,119490.0,119480.0,0.11869811]
[1760110740580,0.00050327,119500.0,119490.0,0.16737802]
[1760110740859,0.00050327,119500.0,119490.0,0.67215008]
[1760110741069,0.00062684,119510.0,119500.0,0.16736401]
[1760110741314,0.00077777,119510.0,119500.0,0.37591607]
[1760110741531,0.00077777,119510.0,119500.0,0.44201607]
[1760110741739,0.00077777,119510.0,119500.0,0.70585607]
[1760110741946,0.00077777,119510.0,119500.0,0.11684206]
[1760110742132,0.7103312,119510.0,119500.0,0.08312206]
[1760110742381,0.00077777,119510.0,119500.0,0.25048607]
[1760110742562,0.00077777,119510.0,119500.0,0.58242607]
[1760110742840,0.00077777,119510.0,119500.0,0.67413607]
[1760110743058,0.00077777,119510.0,119500.0,0.08312206]
[1760110743279,0.00077777,119510.0,119500.0,0.34696206]
[1760110743492,0.00077777,119510.0,119500.0,0.08312206]
[1760110744036,0.04633777,119510.0,119500.0,0.08312206]
[1760110744292,0.00077777,119510.0,119500.0,0.08312206]
[1760110744534,0.34,119500.0,119480.0,0.00140605]
[1760110744781,0.64936,119500.0,119490.0,0.08312206]
[1760110745257,0.34,119500.0,119490.0,0.28422008]
[1760110745505,0.34,119500.0,119490.0,0.11684206]
[1760110746255,1.21143343,119500.0,119490.0,0.001]
[1760110746461,0.45016,119500.0,119490.0,0.08412206]
[1760110746769,0.64936,119500.0,119490.0,0.08412206]
[1760110747006,0.97872401,119500.0,119490.0,0.001]
[1760110747240,1.47523343,119500.0,119490.0,0.001]
[1760110747480,0.81136,119500.0,119490.0,0.001]
[1760110747680,0.00077777,119510.0,119490.0,0.14557206]
[1760110747908,0.60453777,119510.0,119500.0,0.11729206]
[1760110748117,0.61207849,119510.0,119500.0,0.11729206]
[1760110748325,0.81974849,119510.0,119480.0,0.29888605]
[1760110748554,0.81974849,119510.0,119490.0,0.08412206]
[1760110748764,1.65097269,119510.0,119490.0,0.08412206]
[1760110748973,0.04556,119500.0,119490.0,0.08312206]
[1760110749195,1.4113712,119510.0,119490.0,0.08312206]
[1760110749409,0.04556,119500.0,119490.0,0.08312206]
[1760110749628,1.41891572,119510.0,119500.0,0.16736401]
[1760110749629,0.38633777,119510.0,119500.0,0.16736401]
[1760110749847,0.26453777,119510.0,119500.0,0.23702206]
[1760110750085,0.34,119500.0,119480.0,0.03512605]
[1760110750299,0.34,119500.0,119490.0,0.08312206]
[1760110750728,0.38556,119500.0,119490.0,0.08312206]
[1760110750941,0.54767,119500.0,119490.0,0.08312206]
[1760110751157,0.38556,119500.0,119480.0,0.00140605]
[1760110751384,0.60376,119500.0,119490.0,0.17874206]
[1760110751611,0.30906,119500.0,119490.0,0.42312206]
[1760110751844,0.26376,119500.0,119490.0,0.42312206]
[1760110752057,0.04556,119510.0,119490.0,0.51874206]
[1760110752273,0.04556,119510.0,119500.0,0.11684206]
[1760110752274,0.0075527,119510.0,119500.0,0.11684206]
[1760110752489,0.26372,119510.0,119500.0,0.45684206]
[1760110752707,0.27127293,119510.0,119500.0,0.42312206]
[1760110753362,0.04568,119530.0,119510.0,0.34]
[1760110753573,0.00755409,119530.0,119510.0,0.62712165]
[1760110753784,0.26372,119520.0,119510.0,0.45977206]
[1760110753966,0.27127409,119520.0,119510.0,0.42312206]
[1760110754443,0.00755409,119520.0,119510.0,0.45977206]
[1760110754662,0.00755409,119520.0,119480.0,0.04556]
[1760110754663,0.17572238,119510.0,119480.0,0.04556]
[1760110754871,0.17572238,119510.0,119480.0,0.08362533]
[1760110754872,0.85429145,119490.0,119480.0,0.08362533]
[1760110755082,0.22861647,119510.0,119480.0,0.19063533]
[1760110755083,0.04534,119510.0,119480.0,0.19063533]